[Event "Titled Tuesday Blitz December 13 Late 2022"]
[White "Maksimovic, Bojan"]
[Black "Andrews, Todd"]
[WhiteFideId "14408120"]
[BlackFideId "2012456"]
[WhiteElo "2462"]
[BlackElo "2346"]
[Result "0-1"]
[Round "02"]
[TimeControl "180+1"]
[Date "2022.12.14"]
[WhiteClock "0:00:03"]
[BlackClock "0:00:17"]

1. e4 {[%clk 0:03:00]}  e6 {[%clk 0:03:00]} 2. d4 {[%clk 0:02:59]}  d5 {[%clk 0:03:01]} 3. Nc3 {[%clk 0:02:58]}  Bb4 {[%clk 0:03:00]} 4. e5 {[%clk 0:02:57]}  c5 {[%clk 0:03:00]} 5. a3 {[%clk 0:02:58]}  Bxc3+ {[%clk 0:03:00]} 6. bxc3 {[%clk 0:02:58]}  Ne7 {[%clk 0:03:01]} 7. Nf3 {[%clk 0:02:56]}  Qc7 {[%clk 0:03:00]} 8. Be2 {[%clk 0:02:44]}  Bd7 {[%clk 0:03:00]} 9. a4 {[%clk 0:02:43]}  Nbc6 {[%clk 0:02:57]} 10. O-O {[%clk 0:02:41]}  O-O {[%clk 0:02:51]} 11. Ba3 {[%clk 0:02:40]}  cxd4 {[%clk 0:02:47]} 12. cxd4 {[%clk 0:02:38]}  Rae8 {[%clk 0:02:45]} 13. Qd2 {[%clk 0:02:25]}  f6 {[%clk 0:02:45]} 14. Bd6 {[%clk 0:02:22]}  Qc8 {[%clk 0:02:38]} 15. Rab1 {[%clk 0:02:19]}  fxe5 {[%clk 0:02:35]} 16. Nxe5 {[%clk 0:02:16]}  Nxe5 {[%clk 0:02:35]} 17. dxe5 {[%clk 0:02:17]}  Rf7 {[%clk 0:02:11]} 18. Bd3 {[%clk 0:02:08]}  Bxa4 {[%clk 0:02:00]} 19. Qa5 {[%clk 0:01:58]}  Bc6 {[%clk 0:01:56]} 20. Qxa7 {[%clk 0:01:57]}  Nf5 {[%clk 0:01:56]} 21. Bxf5 {[%clk 0:01:55]}  Rxf5 {[%clk 0:01:55]} 22. Qd4 {[%clk 0:01:53]}  Qd7 {[%clk 0:01:54]} 23. Ra1 {[%clk 0:01:51]}  Qf7 {[%clk 0:01:54]} 24. Ra3 {[%clk 0:01:47]}  Rf4 {[%clk 0:01:53]} 25. Qd2 {[%clk 0:01:46]}  d4 {[%clk 0:01:39]} 26. Rg3 {[%clk 0:01:44]}  Ra8 {[%clk 0:01:36]} 27. c3 {[%clk 0:01:38]}  dxc3 {[%clk 0:01:29]} 28. Qxc3 {[%clk 0:01:39]}  h5 {[%clk 0:01:25]} 29. Qe3 {[%clk 0:01:30]}  Ra2 {[%clk 0:01:17]} 30. h3 {[%clk 0:01:21]}  Qf5 {[%clk 0:01:03]} 31. Qb6 {[%clk 0:01:05]}  h4 {[%clk 0:00:52]} 32. Qd8+ {[%clk 0:01:05]}  Kh7 {[%clk 0:00:52]} 33. Rg5 {[%clk 0:01:04]}  Rfxf2 {[%clk 0:00:47]} 34. Rh5+ {[%clk 0:00:12]}  Kg6 {[%clk 0:00:27]} 35. Qg5+ {[%clk 0:00:11]}  Qxg5 {[%clk 0:00:27]} 36. Rxg5+ {[%clk 0:00:12]}  Kxg5 {[%clk 0:00:27]} 37. Rxf2 {[%clk 0:00:13]}  Rxf2 {[%clk 0:00:25]} 38. Kxf2 {[%clk 0:00:14]}  Kf5 {[%clk 0:00:23]} 39. Bf8 {[%clk 0:00:12]}  g6 {[%clk 0:00:21]} 40. Be7 {[%clk 0:00:12]}  Kxe5 {[%clk 0:00:21]} 41. Bxh4 {[%clk 0:00:12]}  b5 {[%clk 0:00:20]} 42. Bg3+ {[%clk 0:00:07]}  Kd4 {[%clk 0:00:21]} 43. Bf4 {[%clk 0:00:02]}  b4 {[%clk 0:00:20]} 44. Bc1 {[%clk 0:00:03]}  b3 {[%clk 0:00:19]} 45. Bb2+ {[%clk 0:00:02]}  Ke4 {[%clk 0:00:19]} 46. Ke2 {[%clk 0:00:01]}  e5 {[%clk 0:00:19]} 47. g4 {[%clk 0:00:01]}  Kf4 {[%clk 0:00:18]} 48. h4 {[%clk 0:00:01]}  e4 {[%clk 0:00:18]} 49. g5 {[%clk 0:00:01]}  Kg4 {[%clk 0:00:17]} 50. Ke3 {[%clk 0:00:01]}  Kxh4 {[%clk 0:00:17]} 51. Kf4 {[%clk 0:00:02]}  Kh3 {[%clk 0:00:17]} 52. Bd4 {[%clk 0:00:02]}  Kg2 {[%clk 0:00:17]} 53. Kg4 {[%clk 0:00:02]}  e3 {[%clk 0:00:16]} 54. Bxe3 {[%clk 0:00:01]}  b2 {[%clk 0:00:17]} 55. Bd4 {[%clk 0:00:02]}  b1=Q {[%clk 0:00:17]} 56. Kf4 {[%clk 0:00:03]}  Qe4# {[%clk 0:00:17]} 0-1


[Site "https://www.chess.com"]

[Event "Titled Tuesday Blitz December 13 Late 2022"]
[White "Malka, Samuel"]
[Black "Andreassen, Lars"]
[WhiteFideId "20643675"]
[BlackFideId "1504878"]
[WhiteElo "2435"]
[BlackElo "2119"]
[Result "1-0"]
[Round "02"]
[TimeControl "180+1"]
[Date "2022.12.14"]
[WhiteClock "0:00:14"]
[BlackClock "0:00:10"]

1. d4 {[%clk 0:03:00]}  d5 {[%clk 0:02:59]} 2. c4 {[%clk 0:03:00]}  e6 {[%clk 0:02:59]} 3. Nf3 {[%clk 0:03:00]}  Nf6 {[%clk 0:02:59]} 4. g3 {[%clk 0:03:01]}  c5 {[%clk 0:02:59]} 5. cxd5 {[%clk 0:03:00]}  cxd4 {[%clk 0:02:59]} 6. dxe6 {[%clk 0:02:51]}  Bxe6 {[%clk 0:02:58]} 7. Qxd4 {[%clk 0:02:38]}  Nbd7 {[%clk 0:02:57]} 8. Bg2 {[%clk 0:02:34]}  Bc5 {[%clk 0:02:57]} 9. Qh4 {[%clk 0:02:34]}  Qb6 {[%clk 0:02:39]} 10. O-O {[%clk 0:02:32]}  h6 {[%clk 0:02:39]} 11. Nc3 {[%clk 0:02:29]}  Ng4 {[%clk 0:02:37]} 12. Ne4 {[%clk 0:02:26]}  Be7 {[%clk 0:02:20]} 13. Bg5 {[%clk 0:02:07]}  f6 {[%clk 0:01:57]} 14. Qh5+ {[%clk 0:01:51]}  Kf8 {[%clk 0:01:47]} 15. Bd2 {[%clk 0:01:44]}  f5 {[%clk 0:01:41]} 16. Neg5 {[%clk 0:01:37]}  Bg8 {[%clk 0:01:23]} 17. Nh4 {[%clk 0:01:02]}  hxg5 {[%clk 0:01:02]} 18. Ng6+ {[%clk 0:00:56]}  Ke8 {[%clk 0:00:58]} 19. Nxh8+ {[%clk 0:00:55]}  Kd8 {[%clk 0:00:58]} 20. Nf7+ {[%clk 0:00:47]}  Kc7 {[%clk 0:00:45]} 21. Rac1+ {[%clk 0:00:46]}  Kb8 {[%clk 0:00:38]} 22. Qh8 {[%clk 0:00:36]}  Ngf6 {[%clk 0:00:27]} 23. Bxg5 {[%clk 0:00:32]}  a5 {[%clk 0:00:25]} 24. Qxg7 {[%clk 0:00:30]}  Bxf7 {[%clk 0:00:21]} 25. Qxf7 {[%clk 0:00:30]}  Bc5 {[%clk 0:00:21]} 26. h4 {[%clk 0:00:20]}  Ka7 {[%clk 0:00:18]} 27. h5 {[%clk 0:00:20]}  Bxf2+ {[%clk 0:00:16]} 28. Rxf2 {[%clk 0:00:20]}  Ng4 {[%clk 0:00:17]} 29. Rf1 {[%clk 0:00:18]}  Nde5 {[%clk 0:00:17]} 30. Qxf5 {[%clk 0:00:16]}  Nxf2 {[%clk 0:00:16]} 31. Qxf2 {[%clk 0:00:16]}  Rg8 {[%clk 0:00:10]} 32. Be3 {[%clk 0:00:14]} 1-0


[Site "https://www.chess.com"]

[Event "Titled Tuesday Blitz December 13 Late 2022"]
[White "Marcolino, Daniel Mattos"]
[Black "Dzierzak, Radoslaw"]
[WhiteFideId "2106841"]
[BlackFideId "1161407"]
[WhiteElo "2137"]
[BlackElo "2111"]
[Result "0-1"]
[Round "02"]
[TimeControl "180+1"]
[Date "2022.12.14"]
[WhiteClock "0:00:07"]
[BlackClock "0:00:09"]

1. d4 {[%clk 0:03:00]}  Nf6 {[%clk 0:02:59]} 2. Nf3 {[%clk 0:03:01]}  e6 {[%clk 0:03:00]} 3. g3 {[%clk 0:03:01]}  d5 {[%clk 0:02:56]} 4. Bg2 {[%clk 0:03:02]}  c5 {[%clk 0:02:54]} 5. O-O {[%clk 0:03:02]}  cxd4 {[%clk 0:02:54]} 6. Nxd4 {[%clk 0:03:00]}  e5 {[%clk 0:02:54]} 7. Nb3 {[%clk 0:02:56]}  Be6 {[%clk 0:02:54]} 8. Nc3 {[%clk 0:02:46]}  Nc6 {[%clk 0:02:32]} 9. e4 {[%clk 0:02:29]}  d4 {[%clk 0:02:31]} 10. Na4 {[%clk 0:02:30]}  b6 {[%clk 0:02:25]} 11. c3 {[%clk 0:02:30]}  d3 {[%clk 0:01:53]} 12. Bg5 {[%clk 0:02:08]}  Be7 {[%clk 0:01:47]} 13. Nc1 {[%clk 0:02:01]}  b5 {[%clk 0:01:43]} 14. Bxf6 {[%clk 0:01:58]}  gxf6 {[%clk 0:01:43]} 15. Nxd3 {[%clk 0:01:45]}  bxa4 {[%clk 0:01:42]} 16. Qxa4 {[%clk 0:01:45]}  Qc7 {[%clk 0:01:36]} 17. f4 {[%clk 0:01:35]}  O-O {[%clk 0:01:30]} 18. f5 {[%clk 0:00:59]}  Bd7 {[%clk 0:01:28]} 19. Qd1 {[%clk 0:00:59]}  Kh8 {[%clk 0:01:25]} 20. Nf2 {[%clk 0:00:55]}  Bc5 {[%clk 0:01:23]} 21. Qh5 {[%clk 0:00:55]}  a5 {[%clk 0:01:00]} 22. Kh1 {[%clk 0:00:54]}  Bxf2 {[%clk 0:01:00]} 23. Rxf2 {[%clk 0:00:54]}  Qb6 {[%clk 0:00:58]} 24. Rd2 {[%clk 0:00:51]}  Rad8 {[%clk 0:00:41]} 25. Rad1 {[%clk 0:00:51]}  Qc7 {[%clk 0:00:41]} 26. Rd6 {[%clk 0:00:46]}  Bc8 {[%clk 0:00:38]} 27. Rxd8 {[%clk 0:00:42]}  Rxd8 {[%clk 0:00:37]} 28. Rxd8+ {[%clk 0:00:41]}  Qxd8 {[%clk 0:00:38]} 29. h4 {[%clk 0:00:41]}  Qg8 {[%clk 0:00:37]} 30. Kh2 {[%clk 0:00:41]}  Ba6 {[%clk 0:00:30]} 31. Qd1 {[%clk 0:00:37]}  Qd8 {[%clk 0:00:29]} 32. Qa4 {[%clk 0:00:37]}  Qd6 {[%clk 0:00:24]} 33. Qb3 {[%clk 0:00:32]}  Kg7 {[%clk 0:00:24]} 34. Qb6 {[%clk 0:00:31]}  Be2 {[%clk 0:00:21]} 35. Qe3 {[%clk 0:00:25]}  Qd3 {[%clk 0:00:17]} 36. Qc1 {[%clk 0:00:21]}  Nd8 {[%clk 0:00:14]} 37. b4 {[%clk 0:00:17]}  axb4 {[%clk 0:00:13]} 38. cxb4 {[%clk 0:00:17]}  Nb7 {[%clk 0:00:14]} 39. a4 {[%clk 0:00:17]}  Nd6 {[%clk 0:00:14]} 40. a5 {[%clk 0:00:13]}  Nxe4 {[%clk 0:00:14]} 41. Qe1 {[%clk 0:00:11]}  Nd2 {[%clk 0:00:08]} 42. Qf2 {[%clk 0:00:09]}  Bf3 {[%clk 0:00:08]} 43. Bxf3 {[%clk 0:00:09]}  Nxf3+ {[%clk 0:00:08]} 44. Kg2 {[%clk 0:00:09]}  Nd4 {[%clk 0:00:09]} 45. a6 {[%clk 0:00:09]}  Qxa6 {[%clk 0:00:08]} 46. Qe3 {[%clk 0:00:08]}  Qb7+ {[%clk 0:00:08]} 47. Kh3 {[%clk 0:00:07]}  Qxb4 {[%clk 0:00:08]} 48. g4 {[%clk 0:00:08]}  Qb3 {[%clk 0:00:08]} 49. Qxb3 {[%clk 0:00:07]}  Nxb3 {[%clk 0:00:09]} 0-1


[Site "https://www.chess.com"]

[Event "Titled Tuesday Blitz December 13 Late 2022"]
[White "Martinez Ramirez, Lennis"]
[Black "Remizov, Yaroslav"]
[WhiteFideId "3509079"]
[BlackFideId "34134015"]
[WhiteElo "2439"]
[BlackElo "2415"]
[Result "0-1"]
[Round "02"]
[TimeControl "180+1"]
[Date "2022.12.13"]
[WhiteClock "0:00:19"]
[BlackClock "0:00:17"]

1. Nf3 {[%clk 0:03:00]}  d5 {[%clk 0:02:58]} 2. c4 {[%clk 0:03:01]}  d4 {[%clk 0:02:57]} 3. b4 {[%clk 0:03:00]}  g5 {[%clk 0:02:57]} 4. Qb3 {[%clk 0:02:58]}  Bg7 {[%clk 0:02:54]} 5. Nxg5 {[%clk 0:02:57]}  e5 {[%clk 0:02:54]} 6. Qg3 {[%clk 0:02:56]}  Qf6 {[%clk 0:02:35]} 7. d3 {[%clk 0:02:37]}  Ne7 {[%clk 0:02:32]} 8. Ne4 {[%clk 0:02:29]}  Qg6 {[%clk 0:02:32]} 9. Qxg6 {[%clk 0:02:26]}  hxg6 {[%clk 0:02:33]} 10. g3 {[%clk 0:02:26]}  f5 {[%clk 0:02:30]} 11. Ng5 {[%clk 0:02:25]}  c5 {[%clk 0:02:07]} 12. bxc5 {[%clk 0:02:22]}  Na6 {[%clk 0:02:07]} 13. Ba3 {[%clk 0:02:21]}  Bf6 {[%clk 0:02:04]} 14. Nf3 {[%clk 0:02:15]}  Bd7 {[%clk 0:01:57]} 15. Bg2 {[%clk 0:02:11]}  O-O-O {[%clk 0:01:54]} 16. Nbd2 {[%clk 0:02:10]}  g5 {[%clk 0:01:45]} 17. Nb3 {[%clk 0:01:58]}  g4 {[%clk 0:01:40]} 18. Nfd2 {[%clk 0:01:58]}  Bc6 {[%clk 0:01:38]} 19. Bxc6 {[%clk 0:01:43]}  Nxc6 {[%clk 0:01:39]} 20. O-O {[%clk 0:01:43]}  Rh3 {[%clk 0:01:32]} 21. f3 {[%clk 0:01:43]}  Bg5 {[%clk 0:01:30]} 22. Kg2 {[%clk 0:01:36]}  Rdh8 {[%clk 0:00:58]} 23. Rh1 {[%clk 0:01:36]}  gxf3+ {[%clk 0:00:48]} 24. Nxf3 {[%clk 0:01:35]}  Be3 {[%clk 0:00:47]} 25. Nh4 {[%clk 0:01:33]}  R3xh4 {[%clk 0:00:46]} 26. gxh4 {[%clk 0:01:33]}  Rxh4 {[%clk 0:00:47]} 27. h3 {[%clk 0:01:19]}  Nc7 {[%clk 0:00:45]} 28. Bc1 {[%clk 0:01:19]}  f4 {[%clk 0:00:39]} 29. Bxe3 {[%clk 0:01:18]}  dxe3 {[%clk 0:00:40]} 30. Rag1 {[%clk 0:01:18]}  Ne6 {[%clk 0:00:39]} 31. Kf1 {[%clk 0:01:15]}  a5 {[%clk 0:00:24]} 32. Rg4 {[%clk 0:01:14]}  Rh5 {[%clk 0:00:24]} 33. a4 {[%clk 0:01:10]}  Ncd4 {[%clk 0:00:22]} 34. Nxd4 {[%clk 0:01:06]}  Nxd4 {[%clk 0:00:22]} 35. h4 {[%clk 0:01:03]}  Nf5 {[%clk 0:00:22]} 36. Kg2 {[%clk 0:00:57]}  Kd7 {[%clk 0:00:16]} 37. Kf3 {[%clk 0:00:30]}  Nd4+ {[%clk 0:00:16]} 38. Ke4 {[%clk 0:00:26]}  Nxe2 {[%clk 0:00:17]} 39. Rb1 {[%clk 0:00:20]}  Nc3+ {[%clk 0:00:17]} 40. Kf3 {[%clk 0:00:20]}  Nxb1 {[%clk 0:00:17]} 41. Rg6 {[%clk 0:00:20]}  Nd2+ {[%clk 0:00:17]} 42. Kg4 {[%clk 0:00:19]}  Rh7 {[%clk 0:00:17]} 43. Rd6+ {[%clk 0:00:18]}  Kc7 {[%clk 0:00:17]} 44. Re6 {[%clk 0:00:18]}  f3 {[%clk 0:00:16]} 45. Rxe5 {[%clk 0:00:18]}  f2 {[%clk 0:00:17]} 46. Rf5 {[%clk 0:00:18]}  e2 {[%clk 0:00:17]} 47. Rxf2 {[%clk 0:00:18]}  e1=Q {[%clk 0:00:17]} 48. Rf4 {[%clk 0:00:18]}  Rg7+ {[%clk 0:00:17]} 49. Kf5 {[%clk 0:00:19]}  Qe7 {[%clk 0:00:17]} 50. h5 {[%clk 0:00:19]}  Rg5# {[%clk 0:00:17]} 0-1


[Site "https://www.chess.com"]

[Event "Titled Tuesday Blitz December 13 Late 2022"]
[White "Martinez Reyes, Pedro Ramon"]
[Black "Freile Martin, Javier"]
[WhiteFideId "3901807"]
[BlackFideId "3600165"]
[WhiteElo "2354"]
[BlackElo "2352"]
[Result "1/2-1/2"]
[Round "02"]
[TimeControl "180+1"]
[Date "2022.12.14"]
[WhiteClock "0:00:40"]
[BlackClock "0:00:32"]

1. e4 {[%clk 0:03:00]}  c5 {[%clk 0:02:58]} 2. Nf3 {[%clk 0:02:57]}  d6 {[%clk 0:02:58]} 3. b3 {[%clk 0:02:57]}  Nf6 {[%clk 0:02:56]} 4. Bb5+ {[%clk 0:02:53]}  Nbd7 {[%clk 0:02:54]} 5. d3 {[%clk 0:02:52]}  e6 {[%clk 0:02:52]} 6. O-O {[%clk 0:02:51]}  Be7 {[%clk 0:02:51]} 7. Bb2 {[%clk 0:02:50]}  O-O {[%clk 0:02:51]} 8. Bxd7 {[%clk 0:02:50]}  Bxd7 {[%clk 0:02:50]} 9. e5 {[%clk 0:02:50]}  dxe5 {[%clk 0:02:50]} 10. Nxe5 {[%clk 0:02:51]}  Be8 {[%clk 0:02:50]} 11. Qf3 {[%clk 0:02:49]}  Qc7 {[%clk 0:02:48]} 12. Nd2 {[%clk 0:02:49]}  Rd8 {[%clk 0:02:48]} 13. a4 {[%clk 0:02:49]}  Rd5 {[%clk 0:02:43]} 14. Ndc4 {[%clk 0:02:48]}  Nd7 {[%clk 0:02:42]} 15. Rfe1 {[%clk 0:02:38]}  Nxe5 {[%clk 0:02:42]} 16. Bxe5 {[%clk 0:02:38]}  Qd8 {[%clk 0:02:33]} 17. Qg3 {[%clk 0:02:37]}  f6 {[%clk 0:02:30]} 18. Bc3 {[%clk 0:02:29]}  e5 {[%clk 0:02:27]} 19. f4 {[%clk 0:02:29]}  exf4 {[%clk 0:02:25]} 20. Qxf4 {[%clk 0:02:29]}  Bc6 {[%clk 0:02:18]} 21. Re6 {[%clk 0:02:29]}  Rg5 {[%clk 0:02:06]} 22. Rxc6 {[%clk 0:02:13]}  bxc6 {[%clk 0:02:05]} 23. Re1 {[%clk 0:02:14]}  Bd6 {[%clk 0:01:49]} 24. Qe4 {[%clk 0:02:11]}  Rd5 {[%clk 0:01:44]} 25. Ne3 {[%clk 0:01:57]}  Be5 {[%clk 0:01:31]} 26. Qc4 {[%clk 0:01:26]}  Bxc3 {[%clk 0:01:20]} 27. Qxc3 {[%clk 0:01:26]}  Re5 {[%clk 0:01:19]} 28. Nc4 {[%clk 0:01:14]}  Rxe1+ {[%clk 0:01:13]} 29. Qxe1 {[%clk 0:01:14]}  Re8 {[%clk 0:01:13]} 30. Qf2 {[%clk 0:01:12]}  Qd5 {[%clk 0:01:06]} 31. h3 {[%clk 0:01:10]}  h5 {[%clk 0:01:05]} 32. Qh4 {[%clk 0:00:56]}  Re2 {[%clk 0:01:00]} 33. Qg3 {[%clk 0:00:47]}  Rxc2 {[%clk 0:00:58]} 34. Kh2 {[%clk 0:00:45]}  Rc3 {[%clk 0:00:43]} 35. Qg6 {[%clk 0:00:43]}  Qxd3 {[%clk 0:00:35]} 36. Qe8+ {[%clk 0:00:42]}  Kh7 {[%clk 0:00:33]} 37. Qxh5+ {[%clk 0:00:42]}  Kg8 {[%clk 0:00:32]} 38. Qe8+ {[%clk 0:00:38]}  Kh7 {[%clk 0:00:32]} 39. Qh5+ {[%clk 0:00:39]}  Kg8 {[%clk 0:00:32]} 40. Qe8+ {[%clk 0:00:40]}  Kh7 {[%clk 0:00:32]} 41. Qh5+ {[%clk 0:00:40]} 1/2-1/2


[Site "https://www.chess.com"]

[Event "Titled Tuesday Blitz December 13 Late 2022"]
[White "Meduri, Aakaash"]
[Black "Domingo Nunez, Alejandro"]
[WhiteFideId "2032252"]
[BlackFideId "22245561"]
[WhiteElo "2113"]
[BlackElo "2242"]
[Result "0-1"]
[Round "02"]
[TimeControl "180+1"]
[Date "2022.12.14"]
[WhiteClock "0:00:43"]
[BlackClock "0:00:25"]

1. d4 {[%clk 0:02:59]}  g6 {[%clk 0:03:00]} 2. h4 {[%clk 0:02:58]}  Bg7 {[%clk 0:03:01]} 3. h5 {[%clk 0:02:59]}  c6 {[%clk 0:03:01]} 4. hxg6 {[%clk 0:02:57]}  hxg6 {[%clk 0:03:00]} 5. Rxh8 {[%clk 0:02:58]}  Bxh8 {[%clk 0:03:01]} 6. Nf3 {[%clk 0:02:55]}  d5 {[%clk 0:03:01]} 7. Bf4 {[%clk 0:02:51]}  Bf5 {[%clk 0:03:00]} 8. e3 {[%clk 0:02:50]}  Qb6 {[%clk 0:03:00]} 9. Qc1 {[%clk 0:02:50]}  Nd7 {[%clk 0:03:00]} 10. Nbd2 {[%clk 0:02:50]}  Rc8 {[%clk 0:02:52]} 11. c4 {[%clk 0:02:49]}  Ngf6 {[%clk 0:02:35]} 12. c5 {[%clk 0:02:45]}  Qd8 {[%clk 0:02:36]} 13. b4 {[%clk 0:02:42]}  Ne4 {[%clk 0:02:27]} 14. a4 {[%clk 0:02:38]}  f6 {[%clk 0:02:22]} 15. Nh4 {[%clk 0:02:31]}  e5 {[%clk 0:02:01]} 16. Bh2 {[%clk 0:02:21]}  Kf7 {[%clk 0:01:55]} 17. Be2 {[%clk 0:02:14]}  Be6 {[%clk 0:01:47]} 18. Nxe4 {[%clk 0:02:10]}  dxe4 {[%clk 0:01:48]} 19. dxe5 {[%clk 0:01:59]}  f5 {[%clk 0:01:48]} 20. g3 {[%clk 0:01:56]}  Nxe5 {[%clk 0:01:46]} 21. Ra3 {[%clk 0:01:46]}  Bf6 {[%clk 0:00:35]} 22. Ng2 {[%clk 0:01:46]}  Qg8 {[%clk 0:00:34]} 23. g4 {[%clk 0:01:41]}  Qh8 {[%clk 0:00:33]} 24. Bg1 {[%clk 0:01:18]}  Qh1 {[%clk 0:00:32]} 25. Kf1 {[%clk 0:01:18]}  fxg4 {[%clk 0:00:29]} 26. Nf4 {[%clk 0:01:12]}  Nf3 {[%clk 0:00:27]} 27. Bxf3 {[%clk 0:01:10]}  gxf3 {[%clk 0:00:27]} 28. Qc2 {[%clk 0:00:43]}  Rd8 {[%clk 0:00:25]} 0-1


[Site "https://www.chess.com"]

[Event "Titled Tuesday Blitz December 13 Late 2022"]
[White "Mendez Fortes, Eduardo Jesus"]
[Black "Ibarra Jerez, Jose Carlos"]
[WhiteFideId "3502376"]
[BlackFideId "2226332"]
[WhiteElo "2307"]
[BlackElo "2638"]
[Result "1-0"]
[Round "02"]
[TimeControl "180+1"]
[Date "2022.12.13"]
[WhiteClock "0:00:04"]
[BlackClock "0:00:02"]

1. e4 {[%clk 0:03:00]}  Nc6 {[%clk 0:02:59]} 2. Nf3 {[%clk 0:03:01]}  d6 {[%clk 0:02:59]} 3. Bb5 {[%clk 0:03:01]}  Nf6 {[%clk 0:02:58]} 4. Qe2 {[%clk 0:02:52]}  g6 {[%clk 0:02:51]} 5. d4 {[%clk 0:02:52]}  a6 {[%clk 0:02:48]} 6. Bxc6+ {[%clk 0:02:51]}  bxc6 {[%clk 0:02:48]} 7. c4 {[%clk 0:02:50]}  Bg7 {[%clk 0:02:42]} 8. Nc3 {[%clk 0:02:50]}  O-O {[%clk 0:02:41]} 9. h3 {[%clk 0:02:51]}  Nd7 {[%clk 0:02:36]} 10. Be3 {[%clk 0:02:51]}  e5 {[%clk 0:02:33]} 11. O-O-O {[%clk 0:02:47]}  exd4 {[%clk 0:02:30]} 12. Bxd4 {[%clk 0:02:47]}  Bxd4 {[%clk 0:02:26]} 13. Nxd4 {[%clk 0:02:48]}  Bb7 {[%clk 0:02:17]} 14. h4 {[%clk 0:02:44]}  Re8 {[%clk 0:02:12]} 15. Qc2 {[%clk 0:02:35]}  Qf6 {[%clk 0:02:08]} 16. f3 {[%clk 0:02:30]}  Ne5 {[%clk 0:02:05]} 17. Nce2 {[%clk 0:02:22]}  c5 {[%clk 0:02:04]} 18. Nb3 {[%clk 0:02:22]}  a5 {[%clk 0:01:58]} 19. Kb1 {[%clk 0:02:22]}  a4 {[%clk 0:01:48]} 20. Nd2 {[%clk 0:02:22]}  Reb8 {[%clk 0:01:35]} 21. Nc3 {[%clk 0:02:17]}  Nc6 {[%clk 0:01:27]} 22. Nd5 {[%clk 0:02:15]}  Qd8 {[%clk 0:01:27]} 23. Qc3 {[%clk 0:02:14]}  Nd4 {[%clk 0:01:27]} 24. Nf1 {[%clk 0:02:08]}  Bxd5 {[%clk 0:01:26]} 25. cxd5 {[%clk 0:02:07]}  Ra6 {[%clk 0:01:22]} 26. Ne3 {[%clk 0:02:05]}  Rb4 {[%clk 0:01:21]} 27. Nc4 {[%clk 0:02:02]}  Qb8 {[%clk 0:01:20]} 28. Ka1 {[%clk 0:01:56]}  Nb5 {[%clk 0:00:38]} 29. Qc2 {[%clk 0:01:42]}  Nd4 {[%clk 0:00:35]} 30. Qc3 {[%clk 0:01:42]}  Nb5 {[%clk 0:00:36]} 31. Qc1 {[%clk 0:01:37]}  Qf8 {[%clk 0:00:36]} 32. a3 {[%clk 0:01:32]}  Rb3 {[%clk 0:00:36]} 33. Nd2 {[%clk 0:01:31]}  Nd4 {[%clk 0:00:35]} 34. Ka2 {[%clk 0:01:26]}  Rb8 {[%clk 0:00:35]} 35. Nc4 {[%clk 0:01:23]}  Qe8 {[%clk 0:00:35]} 36. h5 {[%clk 0:01:21]}  Qf8 {[%clk 0:00:29]} 37. hxg6 {[%clk 0:01:14]}  fxg6 {[%clk 0:00:30]} 38. Qg5 {[%clk 0:01:07]}  Ra7 {[%clk 0:00:29]} 39. e5 {[%clk 0:01:06]}  Qf5 {[%clk 0:00:21]} 40. Qxf5 {[%clk 0:01:05]}  Nxf5 {[%clk 0:00:20]} 41. g4 {[%clk 0:01:05]}  Nd4 {[%clk 0:00:21]} 42. exd6 {[%clk 0:01:05]}  cxd6 {[%clk 0:00:21]} 43. Nxd6 {[%clk 0:01:05]}  Nxf3 {[%clk 0:00:20]} 44. Ne4 {[%clk 0:01:00]}  c4 {[%clk 0:00:18]} 45. d6 {[%clk 0:00:54]}  Rf7 {[%clk 0:00:14]} 46. g5 {[%clk 0:00:49]}  Kg7 {[%clk 0:00:13]} 47. d7 {[%clk 0:00:35]}  Rd8 {[%clk 0:00:14]} 48. Nc5 {[%clk 0:00:35]}  Re7 {[%clk 0:00:12]} 49. Rd6 {[%clk 0:00:33]}  Ne5 {[%clk 0:00:12]} 50. Ne6+ {[%clk 0:00:31]}  Rxe6 {[%clk 0:00:12]} 51. Rxe6 {[%clk 0:00:32]}  Nf7 {[%clk 0:00:12]} 52. Rd1 {[%clk 0:00:32]}  Kf8 {[%clk 0:00:12]} 53. Rf6 {[%clk 0:00:31]}  Kg7 {[%clk 0:00:11]} 54. Rc6 {[%clk 0:00:23]}  Nxg5 {[%clk 0:00:11]} 55. Rc8 {[%clk 0:00:23]}  Nf7 {[%clk 0:00:11]} 56. Rxc4 {[%clk 0:00:23]}  h5 {[%clk 0:00:11]} 57. Rxa4 {[%clk 0:00:23]}  g5 {[%clk 0:00:12]} 58. Re4 {[%clk 0:00:22]}  h4 {[%clk 0:00:11]} 59. Re8 {[%clk 0:00:21]}  h3 {[%clk 0:00:11]} 60. Re3 {[%clk 0:00:14]}  g4 {[%clk 0:00:10]} 61. Rg3 {[%clk 0:00:15]}  Nh6 {[%clk 0:00:10]} 62. Rd4 {[%clk 0:00:13]}  Kf6 {[%clk 0:00:10]} 63. Rdxg4 {[%clk 0:00:12]}  Nxg4 {[%clk 0:00:11]} 64. Rxg4 {[%clk 0:00:13]}  Rh8 {[%clk 0:00:10]} 65. Rh4 {[%clk 0:00:13]}  Rd8 {[%clk 0:00:09]} 66. Rxh3 {[%clk 0:00:13]}  Rxd7 {[%clk 0:00:10]} 67. Rc3 {[%clk 0:00:14]}  Ke5 {[%clk 0:00:10]} 68. a4 {[%clk 0:00:14]}  Kd4 {[%clk 0:00:10]} 69. Ka3 {[%clk 0:00:14]}  Rh7 {[%clk 0:00:10]} 70. Rg3 {[%clk 0:00:13]}  Kc5 {[%clk 0:00:08]} 71. Rg5+ {[%clk 0:00:13]}  Kb6 {[%clk 0:00:09]} 72. Rg3 {[%clk 0:00:12]}  Rh4 {[%clk 0:00:08]} 73. b4 {[%clk 0:00:13]}  Rh1 {[%clk 0:00:08]} 74. Rg6+ {[%clk 0:00:13]}  Kb7 {[%clk 0:00:08]} 75. a5 {[%clk 0:00:13]}  Ra1+ {[%clk 0:00:08]} 76. Kb3 {[%clk 0:00:13]}  Rh1 {[%clk 0:00:09]} 77. Ka4 {[%clk 0:00:14]}  Rh5 {[%clk 0:00:10]} 78. Rg4 {[%clk 0:00:13]}  Rh1 {[%clk 0:00:09]} 79. Rc4 {[%clk 0:00:13]}  Rg1 {[%clk 0:00:09]} 80. Kb5 {[%clk 0:00:13]}  Rg5+ {[%clk 0:00:09]} 81. Rc5 {[%clk 0:00:14]}  Rg6 {[%clk 0:00:09]} 82. a6+ {[%clk 0:00:13]}  Kb8 {[%clk 0:00:07]} 83. Rc6 {[%clk 0:00:12]}  Rg8 {[%clk 0:00:06]} 84. Kb6 {[%clk 0:00:12]}  Ka8 {[%clk 0:00:06]} 85. b5 {[%clk 0:00:12]}  Rb8+ {[%clk 0:00:07]} 86. Ka5 {[%clk 0:00:12]}  Rg8 {[%clk 0:00:07]} 87. Rd6 {[%clk 0:00:12]}  Rf8 {[%clk 0:00:07]} 88. Rd7 {[%clk 0:00:12]}  Rg8 {[%clk 0:00:06]} 89. Rh7 {[%clk 0:00:10]}  Rf8 {[%clk 0:00:07]} 90. b6 {[%clk 0:00:09]}  Rf5+ {[%clk 0:00:07]} 91. Kb4 {[%clk 0:00:09]}  Rf8 {[%clk 0:00:06]} 92. Kb5 {[%clk 0:00:07]}  Rg8 {[%clk 0:00:07]} 93. Rh5 {[%clk 0:00:06]}  Rf8 {[%clk 0:00:06]} 94. Rd5 {[%clk 0:00:07]}  Rg8 {[%clk 0:00:06]} 95. a7 {[%clk 0:00:06]}  Rh8 {[%clk 0:00:04]} 96. Ka6 {[%clk 0:00:03]}  Rh6 {[%clk 0:00:02]} 97. Rd8# {[%clk 0:00:04]} 1-0


[Site "https://www.chess.com"]